bitfinex/quotes_SOLUSD_20240827
["timestamp","ask_amount","ask_price","bid_price","bid_amount"]
[1724756743832,381.3,154.61,154.58,7.76270842]
[1724756744128,381.3,154.61,154.59,6.4685]
[1724756744636,381.3,154.61,154.6,6.4683]
[1724756744814,381.3,154.64,154.6,6.4683]
[1724756745009,381.3,154.64,154.59,6.4686]
[1724756745236,381.3,154.64,154.58,16.172]
[1724756745530,0.12549,154.63,154.59,7.76217595]
[1724756745916,6.4658,154.66,154.6,6.4682]
[1724756746235,387.7649,154.69,154.61,1.29341433]
[1724756746534,6.0527,154.7,154.63,22.6341]
[1724756746839,6.465,154.68,154.63,16.1672]
[1724756747022,6.465,154.68,154.63,17.46043975]
[1724756747347,25.86849153,154.71,154.63,17.46043975]
[1724756747542,6.4641,154.7,154.64,6.4665]
[1724756747838,6.4641,154.7,154.63,17.46043975]
[1724756747839,25.86849153,154.73,154.63,16.1672]
[1724756748148,6.4637,154.71,154.63,16.1672]
[1724756748439,6.4642,154.7,154.63,22.6342]
[1724756748621,6.4646,154.69,154.6,22.4227]
[1724756749616,0.25098,154.68,154.6,22.4227]
[1724756749823,0.25098,154.68,154.63,6.467]
[1724756750041,0.25098,154.68,154.64,1.29315298]
[1724756750416,0.25098,154.68,154.64,7.75965298]
[1724756750918,45.25098,154.69,154.64,7.75965298]
[1724756751130,0.12549,154.68,154.64,7.75965298]
[1724756751839,0.8326649,154.72,154.65,17.03145272]
[1724756752340,6.4638,154.71,154.65,23.49755272]
[1724756752540,6.4643,154.7,154.65,17.03145272]
[1724756752737,6.4643,154.7,154.65,15.7383]
[1724756752941,6.4646,154.69,154.65,15.7383]
[1724756753744,0.12549,154.67,154.63,16.1669]
[1724756753919,0.37647,154.67,154.63,16.1669]
[1724756754116,0.12549,154.64,154.61,15.2247]
[1724756754323,0.12549,154.64,154.56,38.4499]
[1724756754324,6.59209,154.64,154.57,15.2612]
[1724756754517,0.12549,154.63,154.58,6.4687]
[1724756754712,0.12549,154.63,154.59,1.29352806]
[1724756754912,6.59179,154.65,154.59,6.4684]
[1724756755124,6.71758,154.64,154.58,16.1719]
[1724756755442,0.12549,154.63,154.58,22.6409]
[1724756755622,0.25098,154.63,154.58,22.6409]
[1724756755817,0.12549,154.62,154.58,22.6409]
[1724756756018,0.12549,154.62,154.59,1.29355949]
[1724756756539,0.25098,154.63,154.59,1.29355949]
[1724756756743,6.4662,154.65,154.59,7.76195949]
[1724756756963,0.25098,154.64,154.59,6.4684]
[1724756757134,0.25098,154.64,154.6,6.4682]
[1724756757135,0.12549,154.64,154.6,6.4682]
[1724756757335,0.12549,154.65,154.6,6.4682]
[1724756757916,0.12549,154.65,154.62,6.4672]
[1724756758120,20.0,154.67,154.61,16.1692]
[1724756758345,6.4658,154.66,154.61,22.6369]
[1724756758737,6.4662,154.65,154.6,6.4682]
[1724756758921,6.4662,154.65,154.59,6.4686]
[1724756759551,6.4662,154.65,154.58,16.1724]
[1724756759552,0.25098,154.64,154.6,6.4681]
[1724756760041,0.25098,154.65,154.6,6.4681]
[1724756760226,0.12549,154.64,154.59,6.4686]
[1724756760426,6.4675,154.62,154.57,21.7307]
[1724756760643,0.25098,154.61,154.57,15.2612]
[1724756761851,0.12549,154.6,154.55,16.1759]
[1724756762217,0.25098,154.6,154.55,16.1759]
[1724756762439,0.25098,154.59,154.55,16.1759]
[1724756762754,0.25098,154.59,154.53,15.4519]
[1724756762755,0.12549,154.58,154.53,21.923]
[1724756763051,0.12549,154.58,154.54,7.76466672]
[1724756764155,0.12549,154.59,154.55,6.4701]
[1724756764344,0.25098,154.6,154.56,7.76371321]
[1724756764540,0.12549,154.59,154.56,7.76371321]
[1724756764748,6.467,154.63,154.57,6.4694]
[1724756764928,28.1374,154.64,154.58,7.76277271]
[1724756765128,6.4672,154.63,154.57,6.4695]
[1724756765456,6.4672,154.63,154.56,22.6442]
[1724756765457,20.0,154.63,154.56,22.6442]
[1724756765922,25.86849153,154.62,154.53,31.6296]
[1724756766126,0.12549,154.59,154.54,6.4704]
[1724756766351,0.12549,154.59,154.55,7.76426511]
[1724756766352,0.50196,154.59,154.55,7.76426511]
[1724756766549,20.0,154.61,154.56,6.4699]
[1724756766753,0.12549,154.6,154.57,6.4693]
[1724756767129,20.0,154.61,154.56,6.4698]
[1724756767344,0.12549,154.6,154.55,22.6455]
[1724756767552,0.25098,154.6,154.56,7.7636052]
[1724756767759,381.3,154.62,154.57,6.4694]
[1724756768056,381.3,154.62,154.58,1.29367707]
[1724756768347,381.3,154.62,154.59,16.1709]
[1724756768546,381.3,154.62,154.6,7.76167124]
[1724756769748,381.3,154.62,154.61,6.4678]
[1724756770327,6.4645,154.69,154.63,6.467]
[1724756770531,6.4653,154.67,154.62,6.4672]
[1724756770740,6.4653,154.67,154.6,15.8727]
[1724756770741,25.86849153,154.68,154.6,15.8727]
[1724756770933,45.86849153,154.66,154.58,16.1728]
[1724756771230,45.86849153,154.66,154.55,6.25]
[1724756771231,25.86849153,154.64,154.55,16.1757]
[1724756771439,6.4679,154.61,154.56,6.4699]
[1724756771737,0.12549,154.6,154.55,22.646]
[1724756771927,0.37647,154.6,154.56,6.4699]
[1724756772648,6.84487,154.6,154.55,16.1757]
[1724756772846,0.12549,154.59,154.55,16.1757]
[1724756773030,45.12549,154.59,154.55,16.1757]
[1724756773235,0.25098,154.58,154.55,16.1757]
[1724756773764,0.12549,154.58,154.55,23.93998064]
[1724756773932,0.12549,154.59,154.56,6.4698]
[1724756774255,0.37647,154.6,154.56,6.4698]
[1724756774554,0.37647,154.6,154.58,6.4691]
[1724756774754,20.0,154.63,154.58,6.4689]
[1724756774944,20.0,154.63,154.57,16.1729]
[1724756775555,20.0,154.63,154.58,1.29356073]
[1724756775860,6.4662,154.65,154.58,1.29356073]
[1724756776357,381.3,154.67,154.59,16.171]
[1724756776665,381.3,154.67,154.61,6.4678]
[1724756776666,387.7657,154.67,154.61,6.4678]
[1724756777132,387.7657,154.67,154.62,16.1685]
[1724756777133,381.3,154.67,154.62,16.1685]
[1724756777334,6.4651,154.68,154.62,22.6358]
[1724756777560,6.4652,154.68,154.62,16.1685]
[1724756777730,21.6451,154.69,154.62,16.1685]
[1724756778554,6.4654,154.67,154.62,16.1685]
[1724756778746,45.25098,154.66,154.62,16.1685]
[1724756779056,0.12549,154.65,154.62,16.1685]
[1724756779264,0.25098,154.65,154.62,16.1685]
[1724756782053,45.50196,154.68,154.62,22.6353]
[1724756782558,51.96696,154.68,154.62,22.6353]
[1724756782771,51.96696,154.68,154.63,6.4669]
[1724756783839,45.50196,154.68,154.63,6.4669]
[1724756784036,45.50196,154.68,154.63,7.76019259]
[1724756784336,45.50196,154.68,154.63,1.29329259]
[1724756785758,45.50196,154.68,154.63,7.76019259]
[1724756786063,51.96696,154.68,154.62,22.6354]
[1724756786353,0.12549,154.66,154.62,16.168]
[1724756786565,6.4662,154.65,154.6,16.6332]
[1724756786733,71.37045153,154.66,154.56,31.4738]
[1724756786734,45.50196,154.64,154.56,31.4738]
[1724756786942,6.4677,154.62,154.56,37.9437]
[1724756787134,45.50196,154.61,154.56,37.9437]
[1724756787870,0.25098,154.61,154.56,31.4738]
[1724756788161,0.37647,154.62,154.56,37.9433]
[1724756788340,45.37647,154.62,154.56,37.9433]
[1724756788548,45.37647,154.62,154.57,7.76314784]
[1724756788740,51.84397,154.62,154.57,6.4694]
[1724756788941,0.12549,154.61,154.57,6.4694]
[1724756789250,0.37647,154.62,154.58,6.469]
[1724756789962,0.12549,154.61,154.57,7.76315723]
[1724756790842,0.12549,154.61,154.56,15.2993]
[1724756791236,0.12549,154.6,154.56,15.2993]
[1724756791445,0.25098,154.6,154.56,23.06303298]
[1724756791636,0.12549,154.59,154.56,23.06303298]
[1724756791834,0.12549,154.6,154.57,6.4694]
[1724756792059,381.3,154.64,154.56,15.2993]
[1724756792561,381.3,154.64,154.6,6.468]
[1724756792947,381.3,154.64,154.6,7.76146519]
[1724756793148,381.3,154.64,154.61,6.4678]
[1724756793372,0.8326649,154.72,154.7,6.4637]
[1724756793541,0.8326649,154.72,154.71,55.69012419]
[1724756793860,0.8326649,154.72,154.71,22.1899]
[1724756794162,0.8326649,154.72,154.71,15.769]
[1724756794339,0.8326649,154.72,154.7,6.4637]
[1724756794866,0.8326649,154.72,154.71,1.29262086]
[1724756796261,0.8326649,154.72,154.71,1.29210157]
[1724756797853,0.8326649,154.72,154.7,6.4637]
[1724756798143,4.20276885,154.87,154.78,16.1515]
[1724756798343,0.8326649,154.87,154.79,1.2919024]
[1724756798558,381.3,154.86,154.76,1.29189131]
[1724756798860,6.4578,154.85,154.78,16.1518]
[1724756799063,401.3,154.86,154.75,16.2531]
[1724756799362,6.4595,154.81,154.74,22.6179]
[1724756799561,32.20782878,154.82,154.74,22.6181]
[1724756799864,32.20782878,154.82,154.76,6.4615]
[1724756799865,65.0,154.81,154.76,6.4615]
[1724756800044,0.12549,154.8,154.76,6.4615]
[1724756800249,381.3,154.85,154.74,16.1558]
[1724756800460,20.0,154.84,154.75,1.29192742]
[1724756800670,381.3,154.85,154.79,6.4603]
[1724756800851,7.2896649,154.87,154.8,1.29179575]
[1724756801051,0.8326649,154.87,154.82,6.459]
[1724756801365,6.4574,154.86,154.8,22.6087]
[1724756801745,0.8326649,154.87,154.79,6.4601]
[1724756801987,0.8326649,154.87,154.8,1.29185544]
[1724756802143,0.8326649,154.87,154.77,1.2917516]
[1724756802351,6.4574,154.86,154.79,22.61]
[1724756802752,6.4579,154.85,154.79,16.15]
[1724756803254,20.0,154.84,154.75,16.1544]
[1724756803450,0.12549,154.83,154.75,22.6163]
[1724756803659,0.12549,154.8,154.75,16.1544]
[1724756803968,6.4599,154.8,154.73,6.4628]
[1724756804143,51.96236,154.79,154.73,6.4628]
[1724756804347,45.37647,154.79,154.74,1.29240337]
[1724756804555,0.37647,154.79,154.72,1.2922346]
[1724756804751,0.12549,154.79,154.74,16.156]
[1724756804952,20.0,154.82,154.78,6.4605]
[1724756805159,20.0,154.82,154.77,16.1527]
[1724756805566,20.0,154.82,154.77,17.44473388]
[1724756805974,26.4591,154.82,154.77,17.44473388]
[1724756806266,0.12549,154.81,154.72,16.1572]
[1724756806467,0.12549,154.81,154.74,1.29209705]
[1724756806666,6.83607,154.81,154.75,6.462]
[1724756806864,0.12549,154.8,154.75,6.462]
[1724756807169,65.37647,154.8,154.73,6.4626]
[1724756807359,0.12549,154.79,154.73,6.4626]
[1724756807555,0.12549,154.79,154.73,7.75499002]
[1724756807871,0.12549,154.79,154.74,1.29236621]
[1724756808051,0.12549,154.79,154.74,1.29234718]
[1724756808252,0.12549,154.79,154.73,7.75494424]
[1724756808447,0.12549,154.79,154.73,6.4626]
[1724756808752,6.4624,154.75,154.68,22.6263]
[1724756808962,6.58709,154.76,154.7,6.464]
[1724756809162,0.25098,154.75,154.71,7.75612895]
[1724756809347,0.25098,154.76,154.74,6.4624]
[1724756809677,20.0,154.79,154.74,6.4624]
[1724756809870,6.4591,154.82,154.76,6.4614]
[1724756810259,20.0,154.81,154.76,6.4614]
[1724756810576,26.4596,154.81,154.74,6.462]
[1724756810749,26.4596,154.81,154.73,48.36392878]
[1724756811367,0.12549,154.8,154.73,48.36392878]
[1724756811574,51.96196,154.8,154.74,6.4622]
[1724756811872,45.50196,154.8,154.75,6.462]
[1724756812257,0.50196,154.8,154.75,6.462]
[1724756812461,0.37647,154.8,154.76,7.75373662]
[1724756812772,0.37647,154.8,154.76,6.4615]
[1724756813082,0.12549,154.83,154.77,1.29205313]
[1724756813251,6.194,154.88,154.77,49.65198191]
[1724756813456,6.194,154.88,154.77,33.49988191]
[1724756813673,6.194,154.91,154.79,32.20782878]
[1724756813861,7.2896649,154.87,154.81,6.4591]
[1724756814165,7.2896649,154.87,154.82,1.29162182]
[1724756814370,0.8326649,154.87,154.83,1.29166698]
[1724756814876,0.8326649,154.87,154.84,6.4582]
[1724756815171,0.8326649,154.87,154.81,6.4595]
[1724756815373,6.4578,154.86,154.8,22.6097]
[1724756815674,0.37647,154.85,154.8,23.90148432]
[1724756815972,0.12549,154.84,154.8,16.1498]
[1724756816181,0.12549,154.84,154.79,6.46]
[1724756816870,387.7575,154.86,154.8,6.4598]
[1724756817052,6.4578,154.85,154.78,6.4603]
[1724756817253,6.4578,154.85,154.79,6.4603]
[1724756818077,0.25098,154.84,154.8,1.29182513]
[1724756818389,0.37647,154.84,154.8,1.29182513]
[1724756818876,0.37647,154.84,154.8,7.75172513]
[1724756819454,0.12549,154.82,154.78,6.4607]
[1724756819654,0.37647,154.82,154.79,1.29194584]
[1724756819863,0.37647,154.82,154.78,7.7526395]
[1724756820051,6.4578,154.85,154.77,16.1529]
[1724756820252,12.8903,154.86,154.79,16.1499]
[1724756820956,12.8903,154.86,154.8,6.4598]
[1724756821658,6.83427,154.85,154.8,6.4598]
[1724756821861,0.12549,154.84,154.8,6.4598]
[1724756822261,0.12549,154.83,154.79,22.6102]
[1724756822458,0.25098,154.83,154.79,22.6102]
[1724756822663,45.12549,154.84,154.79,22.6102]
[1724756822664,0.12549,154.84,154.8,7.75151951]
[1724756822861,0.25098,154.84,154.8,7.75151951]
[1724756824503,0.12549,154.84,154.81,6.4594]
[1724756824955,0.25098,154.85,154.81,6.4594]
[1724756825465,0.25098,154.85,154.83,6.4586]
[1724756825466,0.12549,154.85,154.83,6.4586]
[1724756825671,6.5444,154.91,154.83,6.4586]
[1724756825672,0.8326649,154.87,154.83,7.75015527]
[1724756826076,0.8326649,154.87,154.84,6.4581]
[1724756827176,0.8326649,154.87,154.83,22.6046]
[1724756828069,0.8326649,154.87,154.84,7.74947643]
[1724756828462,0.8326649,154.87,154.84,6.4579]
[1724756828662,7.2898649,154.87,154.82,6.4587]
[1724756829191,7.2897649,154.87,154.82,6.4587]
[1724756829380,0.25098,154.86,154.82,6.4587]
[1724756829752,0.25098,154.86,154.84,6.458]
[1724756829958,0.25098,154.86,154.83,22.6047]
[1724756830379,0.12549,154.85,154.8,16.1494]
[1724756830681,0.25098,154.85,154.8,16.1494]
[1724756830887,6.70858,154.86,154.81,1.29190327]
[1724756831084,0.25098,154.86,154.81,1.29190327]
[1724756831583,0.25098,154.86,154.82,6.459]
[1724756832367,0.12549,154.86,154.83,6.4584]
[1724756832590,0.8326649,154.87,154.82,22.6061]
[1724756833460,7.2898649,154.87,154.82,22.6061]
[1724756833665,7.2898649,154.87,154.82,16.1471]
[1724756833981,7.2896649,154.87,154.82,16.1471]
[1724756834171,0.12549,154.86,154.83,6.4586]
[1724756834365,0.8326649,154.87,154.83,7.75012785]
[1724756834672,0.8326649,154.87,154.84,6.4581]
[1724756835969,0.8326649,154.87,154.83,7.7501258]
[1724756836276,0.8326649,154.87,154.83,7.75013078]
[1724756836661,0.8326649,154.87,154.82,16.1471]
[1724756836866,0.8326649,154.87,154.84,6.4578]
[1724756837981,0.8326649,154.87,154.86,6.4574]
[1724756839262,0.8326649,154.87,154.86,7.74871414]
[1724756839528,0.8326649,154.87,154.86,9.36608075]
[1724756839666,6.1118,154.96,154.86,9.36608075]
[1724756839667,1.12441014,155.0,154.9,16.1393]
[1724756839871,6.4562,154.89,154.83,6.4586]
[1724756840172,6.2881,154.87,154.78,15.0696]
[1724756840378,6.4582,154.85,154.79,6.4603]
[1724756840575,6.4585,154.84,154.77,6.461]
[1724756840776,6.4585,154.84,154.76,16.153]
[1724756840777,6.4603,154.79,154.73,6.4626]
[1724756840961,6.58539,154.8,154.73,6.4626]
[1724756841162,6.58539,154.8,154.72,16.1578]
[1724756841163,0.12549,154.79,154.77,6.4609]
[1724756841380,6.4582,154.84,154.78,7.75266821]
[1724756841590,20.0,154.83,154.78,7.75266821]
[1724756841973,0.25098,154.82,154.77,6.461]
[1724756842278,0.25098,154.82,154.76,6.4616]
[1724756842475,0.25098,154.82,154.76,7.75366049]
[1724756842786,0.25098,154.82,154.77,7.75306054]
[1724756843082,0.25098,154.82,154.76,7.75354869]
[1724756843286,0.25098,154.82,154.77,6.4611]
[1724756843594,0.12549,154.86,154.78,16.1516]
[1724756843774,65.37647,154.86,154.79,1.29183344]
[1724756843978,0.12549,154.85,154.79,1.29183344]
[1724756844182,6.70878,154.85,154.79,1.29183344]
[1724756844394,20.12549,154.84,154.78,16.1516]
[1724756844688,0.25098,154.83,154.78,22.6123]
[1724756844994,45.25098,154.83,154.78,16.1516]
[1724756845209,0.25098,154.83,154.78,16.1516]
[1724756845369,0.25098,154.83,154.78,22.6123]
[1724756846190,0.12549,154.82,154.78,16.1516]
[1724756846394,0.25098,154.82,154.78,16.1516]
[1724756846698,0.25098,154.83,154.78,16.1516]
[1724756847090,22.9486,154.87,154.79,1.2919662]
[1724756847278,6.458,154.85,154.79,6.4599]
[1724756848097,38.56450076,154.85,154.79,6.4599]
[1724756848468,6.83467,154.84,154.78,22.6123]
[1724756848675,0.37647,154.84,154.78,16.1516]
[1724756849010,6.4587,154.83,154.78,16.1516]
[1724756849172,0.25098,154.82,154.78,16.1516]
[1724756849571,6.4596,154.81,154.75,22.6167]
[1724756849772,0.25098,154.8,154.75,22.6167]
[1724756850288,0.25098,154.8,154.75,16.1549]
[1724756850289,51.71098,154.8,154.75,16.1549]
[1724756850697,6.71138,154.79,154.73,6.4628]
[1724756850904,0.25098,154.78,154.73,6.4628]
[1724756851193,0.12549,154.77,154.72,16.158]
[1724756851391,0.25098,154.77,154.72,16.158]
[1724756851599,0.25098,154.76,154.72,16.158]
[1724756852100,0.25098,154.76,154.72,22.6211]
[1724756852491,0.25098,154.76,154.72,16.158]
[1724756853197,0.25098,154.76,154.72,22.6212]
[1724756854800,0.25098,154.76,154.72,16.158]
[1724756854980,0.25098,154.76,154.72,22.6212]
[1724756855174,60.56930076,154.79,154.73,6.4628]
[1724756855372,0.12549,154.78,154.73,6.4628]
[1724756855576,0.37647,154.78,154.73,6.4628]
[1724756855985,0.37647,154.78,154.74,6.4621]
[1724756856587,0.37647,154.78,154.73,6.4628]
[1724756856794,0.12549,154.77,154.72,16.158]
[1724756856991,0.12549,154.76,154.72,16.158]
[1724756857187,6.83767,154.77,154.72,22.6211]
[1724756857591,0.25098,154.77,154.72,22.6211]
[1724756857791,0.25098,154.77,154.73,6.4627]
[1724756859097,0.25098,154.77,154.72,22.6212]
[1724756859300,381.3,154.81,154.76,6.4612]
[1724756859597,381.3,154.81,154.76,22.6145]
[1724756859798,381.3,154.81,154.77,6.4611]
[1724756860397,381.3,154.81,154.78,6.4607]
[1724756860793,381.3,154.81,154.77,6.4611]
[1724756861201,381.3,154.81,154.78,6.4607]
[1724756861405,0.25098,154.82,154.77,6.4611]
[1724756861700,0.12549,154.82,154.78,6.4606]
[1724756861903,0.25098,154.83,154.78,6.4606]
[1724756862108,0.12549,154.82,154.78,6.4606]
[1724756862286,0.25098,154.82,154.78,6.4606]
[1724756864386,0.25098,154.82,154.79,6.4602]
[1724756864916,387.88379,154.84,154.8,1.29205249]
[1724756864917,381.3,154.84,154.8,1.29205249]
[1724756865106,387.7567,154.88,154.82,6.459]
[1724756865412,387.7567,154.88,154.78,7.95357758]
[1724756865413,6.4585,154.84,154.78,6.6619]
[1724756865600,6.4583,154.84,154.76,32.264]
[1724756865790,6.4579,154.85,154.79,6.46]
[1724756866603,0.25098,154.84,154.79,6.46]
[1724756866791,0.12549,154.82,154.79,6.46]
[1724756866992,381.3,154.88,154.83,6.4583]
[1724756867208,381.3,154.88,154.76,16.1109]
[1724756867414,387.7566,154.88,154.83,6.4584]
[1724756867793,381.3,154.88,154.83,6.4584]
[1724756868908,0.12549,154.87,154.83,6.4584]
[1724756869112,381.3,154.88,154.83,6.4584]
[1724756870303,20.0,154.9,154.84,16.145]
[1724756870304,381.3,154.9,154.84,16.145]
[1724756870503,0.12549,154.89,154.85,6.4577]
[1724756871020,0.12549,154.89,154.82,6.4587]
[1724756871315,6.4577,154.86,154.8,22.6088]
[1724756871493,0.12549,154.85,154.81,6.4594]
[1724756871701,0.12549,154.84,154.81,6.4594]
[1724756871890,0.25098,154.84,154.81,6.4594]
[1724756872215,0.12549,154.83,154.81,6.4594]
[1724756872507,0.12549,154.83,154.8,16.1493]
[1724756872508,0.12549,154.83,154.82,6.4591]
[1724756873292,381.3,154.87,154.82,6.4591]
[1724756873490,0.37647,154.86,154.82,6.4591]
[1724756873705,0.25098,154.85,154.82,6.4591]
[1724756873908,0.12549,154.84,154.82,6.4591]
[1724756874101,45.25098,154.86,154.82,6.4591]
[1724756874709,0.12549,154.85,154.81,6.4594]
[1724756875100,0.25098,154.85,154.81,6.4594]
[1724756875417,0.25098,154.84,154.81,6.4594]
[1724756876501,381.3,154.87,154.82,6.4587]
[1724756877398,387.7571,154.87,154.82,6.4587]
[1724756877798,45.50196,154.86,154.82,6.4587]
[1724756878413,45.50196,154.86,154.81,6.4595]
[1724756878823,51.95956,154.86,154.81,6.4595]
[1724756879316,45.50196,154.86,154.81,6.4595]
[1724756879620,381.3,154.87,154.82,16.1471]
[1724756879825,381.3,154.87,154.83,6.4586]
[1724756880122,387.757,154.87,154.82,22.6061]
[1724756880423,387.757,154.87,154.82,16.1471]
[1724756880820,0.12549,154.86,154.82,16.1471]
[1724756881022,45.50196,154.86,154.82,16.1471]
[1724756881400,0.50196,154.86,154.82,22.6061]
[1724756881821,0.25098,154.86,154.83,6.4585]
[1724756882002,0.25098,154.86,154.84,6.4579]
[1724756882731,381.3,154.87,154.85,6.4578]
[1724756883025,381.3,154.87,154.86,6.4574]
[1724756883204,443.35406611,154.94,154.86,16.143]
[1724756883399,12.5115,154.93,154.87,6.4569]
[1724756883720,6.4549,154.92,154.86,22.6003]
[1724756884228,6.4553,154.91,154.86,22.6003]
[1724756884548,6.4553,154.91,154.86,16.143]
[1724756884727,0.12549,154.9,154.86,16.143]
[1724756885318,0.12549,154.9,154.86,22.6003]
[1724756885519,45.50196,154.91,154.87,6.4568]
[1724756885703,0.25098,154.91,154.86,16.143]
[1724756885904,0.12549,154.91,154.88,6.4564]
[1724756886104,0.25098,154.92,154.88,6.4564]
[1724756886429,20.0,154.93,154.88,6.4564]
[1724756886722,26.4546,154.93,154.88,6.4564]
[1724756887301,401.3,154.94,154.89,6.456]
[1724756887302,387.7541,154.94,154.89,6.456]
[1724756888220,6.4541,154.94,154.89,6.456]
[1724756888524,381.3,154.95,154.91,6.4551]
[1724756888819,6.4541,154.94,154.88,22.5971]
[1724756889032,6.4541,154.94,154.89,6.456]
[1724756889927,381.3,154.95,154.9,6.4553]
[1724756890223,381.3,154.95,154.91,6.4553]
[1724756891114,0.25098,154.94,154.9,6.4555]
[1724756891307,387.754,154.95,154.9,6.4557]
[1724756891708,406.98956611,154.98,154.91,6.4553]
[1724756892305,20.0,154.97,154.91,6.4553]
[1724756892823,6.57879,154.96,154.91,6.4553]
[1724756893128,0.12549,154.95,154.91,6.4553]
[1724756893424,0.12549,154.91,154.83,15.274]
[1724756893730,0.12549,154.91,154.84,22.6034]
[1724756893731,0.12549,154.89,154.84,22.6034]
[1724756893928,25.68956611,154.88,154.83,15.274]
[1724756894130,6.58359,154.85,154.79,22.4114]
[1724756894342,0.25098,154.84,154.79,15.9515]
[1724756894628,0.12549,154.84,154.79,15.9515]
[1724756894801,0.12549,154.85,154.8,1.29180446]
[1724756895002,0.25098,154.85,154.79,15.9515]
[1724756896317,0.25098,154.85,154.8,6.4595]
[1724756896504,381.55098,154.87,154.8,17.44088665]
[1724756896713,0.12549,154.86,154.82,6.4587]
[1724756896912,0.50196,154.86,154.82,6.4587]
[1724756897228,0.50196,154.86,154.81,6.4594]
[1724756897528,6.95956,154.86,154.8,22.6088]
[1724756898031,6.95956,154.86,154.79,15.9515]
[1724756898032,0.12549,154.85,154.79,15.9515]
[1724756898229,0.25098,154.85,154.79,15.9515]
[1724756898406,0.25098,154.84,154.8,6.4595]
[1724756898616,6.58199,154.89,154.82,16.1477]
[1724756898810,0.12549,154.88,154.83,7.74993508]
[1724756899010,0.12549,154.87,154.82,22.6067]
[1724756900322,6.58249,154.87,154.82,22.6067]
[1724756900525,0.12549,154.85,154.8,6.4595]
[1724756901031,0.25098,154.85,154.8,6.4595]
[1724756901338,0.12549,154.84,154.8,6.4595]
[1724756902321,0.12549,154.84,154.76,16.1539]
[1724756902322,0.12549,154.8,154.76,16.1539]
[1724756902523,0.25098,154.8,154.76,16.1539]
[1724756902725,0.12549,154.79,154.76,16.1539]
[1724756902950,0.12549,154.8,154.76,17.44619635]
[1724756903126,0.25098,154.81,154.76,17.44619635]
[1724756903540,6.4588,154.83,154.77,1.29216161]
[1724756903717,6.58429,154.83,154.77,1.29216161]
[1724756904227,0.12549,154.83,154.78,6.4607]
[1724756904431,6.70968,154.83,154.77,7.75302584]
[1724756904641,6.71018,154.82,154.76,23.90749941]
[1724756904838,0.25098,154.81,154.76,23.90749941]
[1724756905214,45.25098,154.81,154.76,22.6154]
[1724756905520,6.58569,154.8,154.74,6.4624]
[1724756905727,0.25098,154.79,154.75,6.4619]
[1724756906622,6.4596,154.81,154.75,6.4619]
[1724756906827,6.58459,154.82,154.77,6.4611]
[1724756907142,0.25098,154.81,154.77,6.4611]
[1724756908527,6.71058,154.81,154.76,6.4615]
[1724756908927,6.71058,154.81,154.76,7.7536666]
[1724756909126,6.71058,154.81,154.75,22.6159]
[1724756909127,6.71078,154.81,154.75,22.6159]
[1724756909335,6.71078,154.81,154.76,1.29216706]
[1724756909524,6.71078,154.81,154.76,7.75356706]
[1724756909726,0.12549,154.8,154.75,22.6162]
[1724756909923,0.25098,154.8,154.75,22.6162]
[1724756910129,0.12549,154.79,154.76,7.75369764]
[1724756910528,0.12549,154.79,154.76,6.4614]
[1724756910740,0.12549,154.8,154.76,6.4614]
[1724756911041,0.12549,154.8,154.78,6.4606]
[1724756911337,0.12549,154.83,154.78,6.4606]
[1724756911560,45.50196,154.83,154.78,6.4606]
[1724756911727,0.50196,154.83,154.78,6.4606]
[1724756912246,45.50196,154.83,154.78,6.4606]